bitfinex/quotes_SOLUSD_20250112
["timestamp","ask_amount","ask_price","bid_price","bid_amount"]
[1736644863569,81.4,187.17,187.09,8.87685201]
[1736644866948,81.4,187.17,187.12,8.87685201]
[1736644867147,19.51981164,187.19,187.13,8.87685201]
[1736644868450,19.51981164,187.19,187.12,8.87685201]
[1736644875448,19.51981164,187.19,187.14,8.87685201]
[1736644877472,19.51981164,187.19,187.12,1.5923]
[1736644877780,19.51981164,187.19,187.09,8.87685201]
[1736644878483,19.51981164,187.19,187.1,8.87685201]
[1736644879052,19.51981164,187.19,187.07,14.974]
[1736644879053,81.4,187.18,187.07,1.6107]
[1736644879274,81.4,187.18,187.07,10.48755201]
[1736644879478,81.4,187.18,187.08,8.87685201]
[1736644881282,81.4,187.18,187.09,8.87685201]
[1736644882474,25.73961164,187.19,187.08,23.776884]
[1736644882674,19.51981164,187.19,187.15,8.87685201]
[1736644882871,19.51981164,187.19,187.17,8.87685201]
[1736644884885,19.51981164,187.19,187.16,8.87685201]
[1736644886567,19.51981164,187.19,187.14,8.87685201]
[1736644887668,19.51981164,187.19,187.15,8.87685201]
[1736644889480,19.51981164,187.19,187.14,8.87685201]
[1736644889684,19.51981164,187.19,187.13,8.87685201]
[1736644889875,19.51981164,187.19,187.07,97.5746]
[1736644890080,19.51981164,187.19,187.11,8.87685201]
[1736644890470,19.51981164,187.19,187.14,8.87685201]
[1736644891094,19.51981164,187.19,187.13,8.87685201]
[1736644891498,19.51981164,187.19,187.1,43.776884]
[1736644891697,19.51981164,187.19,187.13,8.87685201]
[1736644898004,19.51981164,187.19,187.14,8.87685201]
[1736644899091,19.51981164,187.19,187.15,8.87685201]
[1736644901206,19.51981164,187.19,187.16,8.87685201]
[1736644902575,19.51981164,187.19,187.15,8.87685201]
[1736644905704,19.51981164,187.19,187.14,8.87685201]
[1736644906280,19.51981164,187.19,187.15,8.87685201]
[1736644908314,19.51981164,187.19,187.12,23.776884]
[1736644908315,19.51981164,187.19,187.14,8.87685201]
[1736644908508,19.51981164,187.19,187.13,8.87685201]
[1736644911103,19.51981164,187.19,187.11,23.776884]
[1736644911303,19.51981164,187.19,187.13,8.87685201]
[1736644911502,19.51981164,187.19,187.14,8.87685201]
[1736644913916,19.51981164,187.19,187.15,8.87685201]
[1736644914818,19.51981164,187.19,187.14,8.87685201]
[1736644915216,19.51981164,187.19,187.15,8.87685201]
[1736644915920,19.51981164,187.19,187.12,13.3599]
[1736644916113,19.51981164,187.19,187.18,8.87685201]
[1736644916310,81.4,187.26,187.18,8.87685201]
[1736644916499,81.4,187.26,187.21,8.87685201]
[1736644918204,81.4,187.26,187.22,8.87685201]
[1736644919312,2.6694,187.31,187.22,8.87685201]
[1736644919518,20.0,187.29,187.22,8.87685201]
[1736644920721,88.0146,187.32,187.23,8.87685201]
[1736644921823,88.0146,187.32,187.22,8.87685201]
[1736644922008,88.0146,187.32,187.21,8.87685201]
[1736644923221,88.0146,187.32,187.22,8.87685201]
[1736644923531,81.4,187.32,187.23,8.87685201]
[1736644923842,81.4,187.32,187.19,15.68920733]
[1736644923843,81.4,187.32,187.22,8.87685201]
[1736644925534,20.0,187.29,187.22,8.87685201]
[1736644925922,20.0,187.29,187.21,8.87685201]
[1736644926311,81.4,187.28,187.21,8.87685201]
[1736644927616,81.4,187.28,187.23,8.87685201]
[1736644928939,81.4,187.28,187.22,17.75370401]
[1736644930320,81.4,187.28,187.22,8.876852]
[1736644933430,81.4,187.28,187.22,8.87685201]
[1736644933609,81.4,187.28,187.22,17.75370401]
[1736644935836,81.4,187.28,187.22,8.876852]
[1736644936142,81.4,187.28,187.22,17.75370401]
[1736644936436,81.4,187.28,187.23,8.87685201]
[1736644937340,81.4,187.28,187.24,8.87685201]
[1736644938236,81.4,187.34,187.25,8.87685201]
[1736644938437,81.4,187.33,187.27,8.87685201]
[1736644941740,81.4,187.33,187.26,8.87685201]
[1736644942033,81.4,187.32,187.22,8.876852]
[1736644942236,81.4,187.32,187.23,8.87685201]
[1736644943534,81.4,187.32,187.22,8.876852]
[1736644943535,81.4,187.31,187.22,8.876852]
[1736644947146,81.4,187.26,187.14,7.9378]
[1736644947459,81.4,187.24,187.14,10.50355201]
[1736644947621,81.4,187.23,187.14,21.40087]
[1736644947820,87.8185,187.23,187.14,21.40087]
[1736644948642,90.489,187.23,187.13,8.87685201]
[1736644949323,90.489,187.23,187.12,8.87685201]
[1736644949918,90.489,187.23,187.13,8.87685201]
[1736644950739,90.489,187.23,187.11,45.177754]
[1736644951054,90.489,187.23,187.13,8.87685201]
[1736644954343,25.0,187.12,187.11,7e-05]
[1736644954547,25.0,187.11,187.02,72.88880834]
[1736644954726,20.0,187.07,187.02,72.88880834]
[1736644954929,23.776884,187.06,187.02,72.88880834]
[1736644955166,20.0,187.03,187.02,72.88880834]
[1736644955460,20.0,187.03,187.02,64.59153296]
[1736644957252,5.5388,187.04,187.02,64.59153296]
[1736644957451,23.776884,187.03,187.02,64.59153296]
[1736644958564,5.5388,187.04,187.02,64.59153296]
[1736644960741,81.4,187.03,187.02,64.59153296]
[1736644972973,81.4,187.06,187.02,64.59153296]
[1736644978685,2.6727,187.08,187.02,64.59153296]
[1736644978686,81.4,187.05,187.02,64.59153296]
[1736644984590,81.4,187.08,187.02,64.59153296]
[1736644985872,2.6727,187.07,187.02,64.59153296]
[1736644990596,81.4,187.06,187.02,64.59153296]
[1736644996705,23.84538142,187.09,187.03,1.5916]
[1736644996896,23.84538142,187.09,187.03,10.50073512]
[1736644998205,81.4,187.11,187.03,10.50073512]
[1736644998773,81.4,187.11,187.04,8.90913512]
[1736644999221,81.4,187.11,187.06,8.90913512]
[1736644999381,5.3421,187.19,187.08,8.90913512]
[1736644999382,81.4,187.18,187.08,8.90913512]
[1736644999721,81.4,187.18,187.09,1.5916]
[1736645001028,2.6713,187.17,187.09,1.5916]
[1736645001495,23.776884,187.16,187.09,1.5916]
[1736645002718,84.0716,187.15,187.09,1.5916]
[1736645004793,81.4,187.15,187.09,1.5916]
[1736645006596,81.4,187.15,187.09,10.50073512]
[1736645006784,81.4,187.15,187.09,1.5916]
[1736645013608,81.4,187.15,187.1,6.0211]
[1736645013809,81.4,187.15,187.1,14.93023512]
[1736645015829,81.4,187.15,187.1,6.0211]
[1736645016620,81.4,187.15,187.1,14.93023512]
[1736645019233,81.4,187.19,187.14,10.53883512]
[1736645019936,81.4,187.19,187.14,1.6297]
[1736645027626,26.28614569,187.23,187.19,23.776884]
[1736645027627,21.68614569,187.23,187.19,23.776884]
[1736645027834,116.99019213,187.33,187.22,8.90913512]
[1736645028038,116.99019213,187.33,187.23,8.90913512]
[1736645028237,116.99019213,187.33,187.2,7.9478]
[1736645028238,8.23027303,187.31,187.22,8.90913512]
[1736645029331,20.0,187.3,187.22,13.88354371]
[1736645031059,20.0,187.3,187.23,13.88354371]
[1736645032538,20.0,187.3,187.22,13.88354371]
[1736645032755,20.0,187.3,187.21,13.88354371]
[1736645033854,20.0,187.3,187.2,21.83134371]
[1736645034068,20.0,187.3,187.2,7.9478]
[1736645035664,2.6696,187.29,187.2,7.9478]
[1736645038484,81.4,187.27,187.2,7.9478]
[1736645038775,20.0,187.23,187.2,1.6297]
[1736645042651,81.4,187.21,187.16,6.5761]
[1736645047471,81.4,187.2,187.16,6.5761]
[1736645047845,81.4,187.18,187.16,6.5761]
[1736645050058,81.4,187.18,187.15,1.5847]
[1736645050849,81.4,187.15,187.12,6.5883]
[1736645051051,81.4,187.15,187.1,1.537]
[1736645052639,2.6713,187.17,187.1,1.537]
[1736645052640,81.4,187.14,187.1,1.537]
[1736645052860,81.4,187.14,187.08,6.5883]
[1736645059492,81.4,187.13,187.08,6.5883]
[1736645059691,81.4,187.12,187.06,1.537]
[1736645064862,81.4,187.12,187.06,10.43403749]
[1736645065062,81.4,187.12,187.07,8.89703749]
[1736645065882,81.4,187.12,187.06,10.43403749]
[1736645067969,81.4,187.12,187.06,1.537]
[1736645071083,81.4,187.12,187.06,10.43403749]
[1736645071967,81.4,187.12,187.07,8.89703749]
[1736645072198,81.4,187.12,187.08,8.89703749]
[1736645075604,81.4,187.17,187.09,8.89703749]
[1736645075895,20.0,187.14,187.08,8.89703749]
[1736645076799,20.0,187.14,187.09,8.89703749]
[1736645076992,20.0,187.14,187.08,8.89703749]
[1736645078001,20.0,187.14,187.07,8.89703749]
[1736645078300,20.0,187.14,187.06,10.43403749]
[1736645080404,81.4,187.13,187.07,8.89703749]
[1736645080704,81.4,187.13,187.09,8.89703749]
[1736645083291,81.4,187.18,187.09,8.89703749]
[1736645083875,81.4,187.18,187.1,8.89703749]
[1736645084077,81.4,187.18,187.13,10.48203749]
[1736645084399,81.4,187.18,187.14,8.89703749]
[1736645085502,81.4,187.23,187.16,8.89703749]
[1736645085708,81.4,187.23,187.17,8.89703749]
[1736645085875,81.4,187.23,187.16,8.89703749]
[1736645087086,81.4,187.23,187.17,8.89703749]
[1736645087688,81.4,187.23,187.16,8.89703749]
[1736645091288,81.4,187.23,187.17,8.89703749]
[1736645097113,81.4,187.23,187.19,8.89703749]
[1736645101139,6.71641467,187.31,187.21,8.89703749]
[1736645101140,81.4,187.26,187.21,8.89703749]
[1736645102606,81.4,187.26,187.2,1.6549]
[1736645104433,81.4,187.25,187.2,1.6549]
[1736645105834,81.4,187.25,187.2,10.55193749]
[1736645106015,81.4,187.25,187.21,8.89703749]
[1736645107450,4.76968111,187.33,187.25,20.0]
[1736645107653,8.23027303,187.36,187.32,8.89703749]
[1736645107947,8.23027303,187.36,187.34,8.89703749]
[1736645108115,8.23027303,187.36,187.31,1.6607]
[1736645108320,8.23027303,187.36,187.33,8.89703749]
[1736645108539,2.6676,187.43,187.33,8.89703749]
[1736645108938,20.0,187.42,187.33,8.89703749]
[1736645109239,5.5388,187.45,187.31,2.46122795]
[1736645109433,5.5388,187.45,187.34,8.89703749]
[1736645109631,5.5388,187.45,187.33,8.89703749]
[1736645109837,2.6675,187.44,187.33,8.89703749]
[1736645110845,20.0,187.42,187.33,8.89703749]
[1736645113429,81.4,187.41,187.33,8.89703749]
[1736645113622,81.4,187.41,187.34,8.89703749]
[1736645115743,81.4,187.41,187.35,8.89703749]
[1736645117949,81.4,187.41,187.35,30.27698349]
[1736645119266,81.4,187.41,187.31,1.6607]
[1736645119850,81.4,187.41,187.32,8.89703749]
[1736645120026,81.4,187.41,187.33,21.381658]
[1736645120359,81.4,187.41,187.32,8.89703749]
[1736645120941,81.4,187.41,187.32,17.79407549]
[1736645121445,81.4,187.41,187.33,8.89703749]
[1736645122167,81.4,187.4,187.32,17.79407549]
[1736645122752,81.4,187.4,187.32,8.89703749]
[1736645123265,81.4,187.38,187.31,1.6607]
[1736645123567,81.4,187.35,187.26,1.6333]
[1736645124095,81.4,187.31,187.21,1.6333]
[1736645124853,81.4,187.31,187.21,10.53033749]
[1736645125978,81.4,187.3,187.21,10.53033749]
[1736645131272,81.4,187.29,187.21,10.53033749]
[1736645132263,81.4,187.29,187.22,8.89703749]
[1736645133378,81.4,187.29,187.21,10.53033749]
[1736645134558,81.4,187.29,187.22,8.89703749]
[1736645136581,81.4,187.29,187.23,8.89703749]
[1736645136779,81.4,187.29,187.25,8.89703749]
[1736645136966,81.4,187.29,187.26,8.89703749]
[1736645137161,81.4,187.29,187.25,8.89703749]
[1736645137364,81.4,187.28,187.21,1.6333]
[1736645137575,81.4,187.26,187.17,8.89703749]
[1736645138678,81.4,187.21,187.12,0.80126141]
[1736645138881,81.4,187.21,187.12,8.89703749]
[1736645139111,81.4,187.2,187.11,10.50743749]
[1736645139475,81.4,187.2,187.14,8.89703749]
[1736645139655,81.4,187.24,187.12,0.80137445]
[1736645139983,81.4,187.24,187.18,8.89703749]
[1736645140381,81.4,187.24,187.17,8.89703749]
[1736645141379,81.4,187.24,187.17,13.89330324]
[1736645142680,81.4,187.24,187.15,13.89330324]
[1736645142888,20.0,187.21,187.13,13.89330324]
[1736645143115,20.0,187.2,187.11,15.50370324]
[1736645143374,101.4,187.19,187.09,13.89330324]
[1736645143513,20.0,187.14,187.02,66.20193296]
[1736645143700,20.0,187.14,187.03,13.89330324]
[1736645144689,22.6718,187.14,187.03,13.89330324]
[1736645144884,81.4,187.09,187.03,13.89330324]
[1736645145117,20.0,187.05,187.02,64.59153296]
[1736645145281,20.0,187.05,187.02,41.07769474]
[1736645146295,81.4,187.04,187.02,41.07769474]
[1736645146495,84.0733,187.04,187.02,41.07769474]
[1736645146698,23.776884,187.03,187.02,41.07769474]
[1736645146891,89.6121,187.04,187.02,41.07769474]
[1736645147499,81.4,187.04,187.02,41.07769474]
[1736645153373,86.9388,187.09,187.02,41.07769474]
[1736645153569,81.4,187.09,187.02,41.07769474]
[1736645153770,20.0,187.06,187.02,41.07769474]
[1736645156601,81.4,187.04,187.02,41.07769474]
[1736645158373,2.6733,187.03,187.02,41.07769474]
[1736645161295,43.776884,187.04,187.02,41.07769474]
[1736645161617,20.0,187.04,187.02,41.07769474]
[1736645162917,22.6732,187.04,187.02,41.07769474]
[1736645166699,2.6728,187.07,187.02,41.07769474]
[1736645167076,20.0,187.05,187.02,41.07769474]
[1736645168502,2.6732,187.04,187.02,41.07769474]
[1736645184125,2.6732,187.04,187.02,38.16269474]
[1736645184126,23.776884,187.03,187.02,38.16269474]
[1736645184312,23.776884,187.03,187.02,32.10599474]
[1736645184502,23.776884,187.03,187.02,24.35449474]
[1736645186415,23.776884,187.03,187.02,16.61429474]
[1736645186809,23.776884,187.03,187.02,8.87409474]
[1736645187009,23.776884,187.03,187.02,5.89169474]
[1736645187311,23.776884,187.03,186.94,1.6539]
[1736645187312,20.0,187.0,186.94,1.6539]
[1736645188421,20.0,186.96,186.94,1.6539]
[1736645190105,101.9,186.96,186.89,1.6393]
[1736645190613,104.5744,186.96,186.89,1.6393]
[1736645193224,2.6744,186.96,186.9,13.93438646]
[1736645193730,2.6744,186.96,186.89,1.6393]
[1736645195602,8.0231,186.96,186.89,1.6393]
[1736645197123,20.0,186.94,186.89,1.6393]
[1736645197322,2.6747,186.93,186.89,1.6393]
[1736645199329,22.6747,186.93,186.89,1.6393]
[1736645200512,81.9,186.92,186.84,15.50108646]
[1736645200808,81.9,186.92,186.84,1.5667]
[1736645202016,2.675,186.91,186.84,1.5667]
[1736645205704,2.675,186.91,186.84,15.50108646]
[1736645206199,81.9,186.9,186.84,1.5667]
[1736645209619,81.9,186.9,186.84,10.48995008]
[1736645209817,81.9,186.9,186.85,8.92325008]
[1736645211536,81.9,186.9,186.84,1.5667]
[1736645213029,81.9,186.9,186.78,14.18705478]
[1736645213030,125.676884,186.86,186.78,0.80275478]
[1736645213230,125.676884,186.86,186.77,57.4486]
[1736645214352,2.6759,186.85,186.77,57.4486]
[1736645216113,101.9,186.86,186.78,8.92325008]
[1736645216912,101.9,186.86,186.77,66.37185008]
[1736645218152,81.9,186.85,186.77,66.37185008]
[1736645219959,81.9,186.85,186.78,8.92325008]
[1736645220852,81.9,186.85,186.8,8.92325008]
[1736645221021,81.9,186.85,186.81,8.92325008]
[1736645221921,81.9,186.85,186.82,8.92325008]
[1736645224215,81.9,186.89,186.83,10.49625008]
[1736645226444,81.9,186.89,186.83,1.573]
[1736645226749,81.9,186.89,186.83,10.49625008]
[1736645226918,81.9,186.89,186.83,1.573]
[1736645230532,81.9,186.89,186.83,10.49625008]
[1736645232850,81.4,186.89,186.83,10.49625008]
[1736645233438,81.4,186.89,186.83,1.573]
[1736645236051,81.4,186.88,186.83,1.573]
[1736645241942,105.176884,186.87,186.78,1.5826]
[1736645242256,81.4,186.83,186.78,1.5826]
[1736645246058,81.4,186.83,186.79,8.92325008]
[1736645250061,81.4,186.83,186.8,8.92325008]
[1736645250775,20.0,186.85,186.81,8.92325008]
[1736645251758,20.0,186.85,186.78,1.5826]
[1736645251966,20.0,186.85,186.81,8.92325008]
[1736645252936,81.4,186.88,186.81,8.92325008]
[1736645253537,81.4,186.88,186.8,8.92325008]
[1736645254169,81.4,186.88,186.78,1.5826]
[1736645254937,81.4,186.88,186.78,10.50585008]
[1736645255540,81.4,186.88,186.79,8.92325008]
[1736645257061,81.4,186.87,186.79,8.92325008]
[1736645258351,81.4,186.87,186.78,10.50585008]
[1736645262766,20.0,186.84,186.78,1.5826]
[1736645267482,20.0,186.84,186.78,10.50585008]
[1736645270273,20.0,186.84,186.78,1.5826]
[1736645272480,20.0,186.84,186.78,10.50585008]
[1736645273073,20.0,186.84,186.78,1.5826]
[1736645277278,81.4,186.87,186.78,10.50585008]
[1736645277482,81.4,186.87,186.81,8.92325008]
[1736645279480,81.4,186.87,186.82,16.75065008]
[1736645280281,81.4,186.87,186.82,7.8274]
[1736645288494,81.4,186.87,186.82,1.6623]
[1736645290089,81.4,186.86,186.82,1.6623]
[1736645291173,81.4,186.85,186.77,65.276]
[1736645295725,81.4,186.85,186.78,8.92325008]
[1736645296304,81.4,186.85,186.79,8.92325008]
[1736645296607,81.4,186.85,186.8,8.92325008]
[1736645296785,7.2352,186.9,186.81,1.6256]
[1736645297404,20.0,186.87,186.81,1.6256]
[1736645297907,20.0,186.87,186.81,10.54885008]
[1736645298274,20.0,186.87,186.81,1.6256]
[1736645300104,20.0,186.88,186.81,10.54885008]
[1736645301502,20.0,186.88,186.81,1.6256]
[1736645304307,20.0,186.88,186.82,6.3316]
[1736645304612,20.0,186.88,186.82,15.25485008]
[1736645304789,20.0,186.88,186.82,6.3316]
[1736645356456,20.0,186.88,186.82,15.25485008]
[1736645358855,5.3495,186.94,186.88,6.0104]
[1736645358856,89.63027303,186.94,186.88,6.0104]
[1736645359056,89.63027303,186.94,186.88,14.93365008]
[1736645359757,81.4,186.94,186.88,14.93365008]
[1736645360451,81.4,186.94,186.89,1.6643]
[1736645361540,81.4,186.98,186.91,8.92325008]
[1736645362959,81.4,186.98,186.92,16.59795008]
[1736645363734,4.56,187.01,186.92,16.59795008]
[1736645363735,4.56,187.01,186.93,8.92325008]
[1736645364357,81.4,187.02,186.96,1.6643]
[1736645365444,81.4,187.02,186.96,16.59795008]
[1736645370575,81.4,187.02,186.96,7.6747]
[1736645371683,81.4,187.02,186.96,1.6643]
[1736645371684,20.0,186.99,186.96,1.6643]
[1736645371976,81.4,186.98,186.92,7.6747]
[1736645372158,20.0,186.95,186.92,7.6747]
[1736645375752,20.0,186.95,186.92,1.6643]
[1736645380182,20.0,186.95,186.88,6.0104]
[1736645383383,23.776884,186.94,186.88,6.0104]
[1736645383589,105.176884,186.94,186.88,6.0104]
[1736645386170,20.0,186.91,186.88,6.0104]
[1736645397499,81.4,186.94,186.88,14.93365008]
[1736645400201,81.4,186.94,186.89,8.92325008]
[1736645400384,81.4,186.97,186.91,8.92325008]
[1736645400589,81.4,186.97,186.92,1.5102]
[1736645401500,105.176884,186.96,186.92,1.5102]
[1736645401697,20.0,186.93,186.88,6.0104]
[1736645401904,20.0,186.93,186.88,7.5206]
[1736645402091,19.5,186.93,186.88,7.5206]
[1736645403286,19.5,186.93,186.88,16.44385008]
[1736645403490,19.5,186.93,186.89,8.92325008]
[1736645404082,81.4,186.96,186.89,8.92325008]
[1736645404407,81.4,186.96,186.9,8.92325008]
[1736645405322,81.4,186.96,186.88,7.5206]
[1736645405611,2.6735,187.02,186.88,7.5206]
[1736645405612,85.96,187.02,186.94,15.15485008]
[1736645405793,81.4,187.01,186.95,8.92325008]
[1736645405982,81.4,187.01,186.94,6.2316]
[1736645405983,81.4,187.01,186.96,8.92325008]
[1736645408094,81.4,187.01,186.95,8.92325008]
[1736645413106,81.4,187.01,186.94,6.2316]
[1736645413309,81.4,187.01,186.94,15.15485008]
[1736645414186,81.4,187.01,186.95,8.92325008]
[1736645415590,81.4,187.01,186.94,6.2316]
[1736645415792,81.4,187.01,186.94,15.15485008]
[1736645417998,81.4,187.01,186.94,6.2316]
[1736645419007,81.4,187.01,186.95,8.92325008]
[1736645427518,81.4,187.01,186.94,6.2316]
[1736645427817,81.4,187.0,186.94,6.2316]
[1736645428612,81.4,187.0,186.94,15.15485008]
[1736645443332,81.4,187.0,186.94,6.2316]
[1736645445735,81.4,187.0,186.94,15.15485008]
[1736645448645,81.4,187.0,186.96,8.92325008]
[1736645449526,81.4,187.03,186.98,8.92325008]
[1736645449717,81.4,187.03,186.99,8.92325008]
[1736645451425,81.4,187.03,186.97,8.92325008]
[1736645452330,81.4,187.03,186.96,8.92325008]
[1736645455540,81.4,187.03,186.97,8.92325008]
[1736645456237,81.4,187.03,186.94,6.2316]
[1736645456536,81.4,187.03,186.97,8.92325008]
[1736645458517,81.4,187.03,186.98,8.92325008]
[1736645459136,81.4,187.03,186.97,8.92325008]
[1736645459333,81.4,187.03,186.96,8.92325008]
[1736645460731,81.4,187.02,186.96,8.92325008]
[1736645462141,81.4,187.01,186.94,15.15485008]
[1736645462362,81.4,187.01,186.93,8.92325008]
[1736645462652,8.23027303,187.07,187.0,8.92325008]
[1736645462822,8.23027303,187.07,186.98,1.5391]
[1736645462823,8.23027303,187.07,187.02,8.92325008]
[1736645463243,8.23027303,187.07,186.98,1.5391]
[1736645463446,8.23027303,187.07,187.0,8.92325008]
[1736645463652,81.4,187.06,186.98,1.5391]
[1736645463824,81.4,187.05,186.96,8.92325008]
[1736645464024,81.4,187.05,186.95,8.92325008]
[1736645465141,23.776884,187.04,186.95,8.92325008]
[1736645465344,81.4,187.03,186.93,10.46235008]
[1736645465545,81.4,187.01,186.91,15.26485008]
[1736645465842,81.4,187.01,186.91,8.92325008]
[1736645466641,81.4,187.0,186.92,8.92325008]
[1736645467555,81.4,187.0,186.93,8.92325008]
[1736645468656,81.4,187.0,186.92,8.92325008]
[1736645469832,81.4,187.0,186.94,8.92325008]
[1736645470043,81.4,187.0,186.96,8.92325008]
[1736645472942,81.4,187.05,186.97,8.92325008]
[1736645473130,81.4,187.05,186.99,8.92325008]
[1736645473529,81.4,187.05,187.0,8.92325008]
[1736645473966,81.4,187.05,186.99,8.92325008]
[1736645477355,81.4,187.05,186.98,8.92325008]
[1736645477560,81.4,187.05,186.97,10.46235008]
[1736645478561,10.0788,187.09,186.97,10.46235008]
[1736645478562,81.4,187.04,186.97,10.46235008]
[1736645478954,81.4,187.04,186.98,8.92325008]
[1736645480170,81.4,187.04,186.99,8.92325008]
[1736645480476,81.4,187.04,187.0,8.92325008]
[1736645481258,81.4,187.04,186.99,8.92325008]
[1736645481763,81.4,187.04,187.0,8.92325008]
[1736645484539,81.4,187.07,187.03,8.92325008]
[1736645484673,81.4,187.07,187.06,8.92325008]
[1736645484871,81.4,187.1,187.06,8.92325008]
[1736645485293,81.4,187.1,187.07,8.92325008]
[1736645485679,81.4,187.13,187.08,8.92325008]
[1736645485984,8.23027303,187.15,187.09,8.92325008]
[1736645486387,114.32109213,187.17,187.09,8.92325008]
[1736645486388,81.4,187.17,187.09,8.92325008]
[1736645487405,81.4,187.17,187.04,14.16741461]
[1736645487577,23.776884,187.16,187.06,8.92325008]
[1736645487889,81.4,187.17,187.08,8.92325008]
[1736645488070,81.4,187.17,187.09,8.92325008]
[1736645489772,81.4,187.17,187.1,8.92325008]
[1736645492764,81.4,187.17,187.07,8.92325008]
[1736645493262,81.4,187.17,187.08,8.92325008]
[1736645493481,81.4,187.17,187.09,8.92325008]
[1736645494760,81.4,187.17,187.1,8.92325008]
[1736645495751,81.4,187.17,187.09,8.92325008]
[1736645496984,81.4,187.17,187.1,8.92325008]
[1736645497472,81.4,187.17,187.09,8.92325008]
[1736645498457,81.4,187.17,187.1,8.92325008]
[1736645499404,81.4,187.17,187.11,8.92325008]
[1736645501865,81.4,187.17,187.12,8.92325008]
[1736645504067,81.4,187.22,187.14,8.92325008]
[1736645504278,81.4,187.21,187.15,8.92325008]
[1736645505457,81.4,187.21,187.16,8.92325008]
[1736645505985,81.4,187.21,187.15,8.92325008]
[1736645506181,81.4,187.21,187.14,8.92325008]
[1736645507302,81.4,187.21,187.13,8.92325008]
[1736645507463,81.4,187.21,187.11,8.92325008]
[1736645507875,81.4,187.21,187.12,8.92325008]
[1736645508087,81.4,187.21,187.13,8.92325008]
[1736645509284,81.4,187.21,187.12,8.92325008]
[1736645509586,81.4,187.21,187.1,1.5944]
[1736645509788,81.4,187.21,187.11,8.92325008]
[1736645510289,81.4,187.21,187.12,8.92325008]
[1736645511576,81.4,187.2,187.12,8.92325008]
[1736645513000,81.4,187.2,187.13,8.92325008]
[1736645517492,81.4,187.19,187.13,8.92325008]
[1736645518692,81.4,187.19,187.12,8.92325008]
[1736645523477,81.4,187.18,187.12,8.92325008]
[1736645525498,81.4,187.18,187.13,8.92325008]
[1736645526994,81.4,187.18,187.14,8.92325008]
[1736645527198,81.4,187.18,187.15,8.92325008]
[1736645531598,81.4,187.18,187.1,1.5944]
[1736645531912,81.4,187.18,187.11,8.92325008]
[1736645532090,81.4,187.18,187.12,8.92325008]
[1736645532282,81.4,187.18,187.13,8.92325008]
[1736645534677,81.4,187.18,187.12,8.92325008]
[1736645537509,81.4,187.18,187.13,8.92325008]
[1736645539494,81.4,187.18,187.15,8.92325008]
[1736645541996,2.6701,187.26,187.16,8.92325008]
[1736645541997,81.4,187.22,187.16,8.92325008]
[1736645542197,81.4,187.22,187.17,8.92325008]
[1736645543204,81.4,187.22,187.18,8.92325008]
[1736645543399,81.4,187.25,187.2,8.92325008]
[1736645544992,81.4,187.25,187.19,8.92325008]
[1736645546223,81.4,187.25,187.17,8.92325008]
[1736645547227,81.4,187.25,187.18,8.92325008]
[1736645548027,81.4,187.25,187.19,8.92325008]
[1736645553419,81.4,187.25,187.2,8.92325008]
[1736645555633,81.4,187.25,187.19,8.92325008]
[1736645568845,84.0695,187.3,187.19,8.92325008]
[1736645569047,81.4,187.29,187.2,32.70013408]
[1736645574544,81.4,187.29,187.21,8.92325008]
[1736645576573,81.4,187.29,187.22,8.92325008]
[1736645580952,81.4,187.29,187.21,8.92325008]
[1736645582465,20.0,187.26,187.16,1.5522]
[1736645582669,101.4,187.26,187.16,1.5522]